fUSD/lending_fUSD_20240508
["ID","MTS","AMOUNT","RATE_DAILY","PERIOD"]
[326625956,1715159447839,-416.22687914,0.000289,2]
[326625957,1715159447849,-197.19390969,0.000289,2]
[326625958,1715159447858,-193.8779513,0.000289,2]
[326625959,1715159447867,-184.0,0.0002897,15]
[326625960,1715159447877,-156.0,0.0002897,15]
[326625961,1715159447892,-184.0,0.0002898,15]
[326625962,1715159447901,-156.0,0.0002898,15]
[326625963,1715159447911,-184.0,0.0002899,15]
[326625964,1715159447921,-156.0,0.0002899,15]
[326625965,1715159447932,-564.56776386,0.00029,2]
[326625966,1715159447941,-500000.0,0.00029,2]
[326625967,1715159447950,-969.0,0.00029,13]
[326625968,1715159447962,-164.61,0.00029,2]
[326625969,1715159447971,-51285.79252978,0.00029,7]
[326625970,1715159447983,-2968.23823805,0.00029,7]
[326625971,1715159447996,-4433.464,0.00029,7]
[326625972,1715159448007,-177957.80768,0.00029,7]
[326625973,1715159448019,-832.39313199,0.00029,7]
[326625974,1715159448030,-1310.76,0.00029,7]
[326625975,1715159448042,-1138.82,0.00029,7]
[326625988,1715159451074,-500.0,0.00028199,7]
[326625990,1715159451084,-328.46681849,0.00028747,7]
[326625993,1715159451099,-171.53318151,0.00028747,7]
[326625996,1715159451108,-32842.54050418,0.00029,7]
[326626000,1715159451119,-3150.39333094,0.00029,7]
[326626002,1715159451131,-6573.59869803,0.00029,7]
[326626004,1715159451142,-28495.800534,0.00029,7]
[326626005,1715159451153,-115000.0,0.00029,7]
[326626006,1715159451165,-74010.39135303,0.00029,7]
[326626007,1715159451174,-668083.0,0.00029,5]
[326626008,1715159451183,-7182.31171638,0.00029013,2]
[326626009,1715159451193,-8550.0,0.00029021,7]
[326626010,1715159451202,-470.51049057,0.00029188,2]
[326626011,1715159451212,-310.21241604,0.0002921,2]
[326626012,1715159451221,-1007.7769202,0.00029258,2]
[326626013,1715159451230,-1005.08,0.0002926,2]
[326626014,1715159451239,-184.0,0.0002927,15]
[326626015,1715159451249,-156.0,0.0002927,15]
[326626016,1715159451259,-184.0,0.0002928,15]
[326626017,1715159451268,-156.0,0.0002928,15]
[326626018,1715159451277,-184.0,0.0002929,15]
[326626019,1715159451287,-156.0,0.0002929,15]
[326626020,1715159451297,-8550.0,0.00029295,7]
[326626021,1715159451306,-500.0,0.00029295,7]
[326626022,1715159451315,-4873.98,0.00029295,7]
[326626023,1715159451325,-500.0,0.00029295,7]
[326626024,1715159451334,-500.0,0.00029295,7]
[326626025,1715159451344,-500.0,0.00029295,7]
[326626026,1715159451354,-540.45,0.00029295,7]
[326626027,1715159451363,-500.0,0.00029295,7]
[326626028,1715159451373,-500.0,0.00029295,7]
[326626029,1715159451382,-634.78,0.00029295,7]
[326626030,1715159451391,-1178.06,0.00029295,7]
[326626031,1715159451400,-500.0,0.00029295,7]
[326626032,1715159451409,-500.0,0.00029295,7]
[326626033,1715159451419,-1531.75,0.00029295,7]
[326626034,1715159451428,-500.0,0.00029295,7]
[326626035,1715159451438,-500.0,0.00029295,7]
[326626036,1715159451447,-500.0,0.00029295,7]
[326626037,1715159451457,-500.0,0.00029295,7]
[326626038,1715159451467,-500.0,0.00029295,7]
[326626039,1715159451476,-944.51,0.00029295,7]
[326626040,1715159451486,-500.0,0.00029295,7]
[326626041,1715159451497,-500.0,0.00029295,7]
[326626042,1715159451507,-500.0,0.00029295,7]
[326626043,1715159451517,-500.0,0.00029295,7]
[326626044,1715159451534,-500.0,0.00029295,7]
[326626045,1715159451548,-2197.6026,0.00029306,30]
[326626046,1715159451559,-969.0,0.00029306,30]
[326626047,1715159451569,-8875.37082041,0.00029306,30]
[326626048,1715159451579,-255284.06389161,0.00029306,30]
[326626049,1715159451592,-624.56983749,0.00029306,30]
[326626050,1715159451604,-480.16982061,0.00029306,30]
[326626051,1715159451615,-1074.93450512,0.00029306,30]
[326626052,1715159451673,-40866.50697139,0.00029306,30]
[326626053,1715159451684,-729.84447546,0.00029306,30]
[326626731,1715160636447,-517.0,0.00014598,2]
[326626734,1715160636464,-2784.48495281,0.00014598,2]
[326626737,1715160636479,-3268.49716594,0.00014598,2]
[326626739,1715160636491,-341.93348722,0.00014598,2]
[326626741,1715160636503,-1447.22392608,0.00014598,2]
[326626743,1715160636513,-1592.96817225,0.00014599,2]
[326626745,1715160636522,-160.56191225,0.000146,2]
[326626747,1715160636532,-1592.96817223,0.0001465,2]
[326626749,1715160636541,-1592.96817223,0.000147,2]
[326626751,1715160636551,-2361.76986435,0.000148,2]
[326626752,1715160636561,-3092.0,0.00015,2]
[326626753,1715160636570,-702.0,0.00015,2]
[326626754,1715160636579,-156.44433401,0.00016423,2]
[326626755,1715160636589,-152.50767434,0.00016818,2]
[326626756,1715160636599,-379.80104831,0.00017,2]
[326626757,1715160636608,-499.99,0.00017,2]
[326626758,1715160636618,-156.09725218,0.00017174,2]
[326626759,1715160636628,-152.50767434,0.00017339,2]
[326626760,1715160636637,-300.0,0.00017814,2]
[326626761,1715160636650,-10000.0,0.00017914,2]
[326626762,1715160636660,-750.0,0.00018,3]
[326626763,1715160636673,-152.50767434,0.00018051,2]
[326626764,1715160636687,-421.0,0.00018486,2]
[326626765,1715160636702,-437.0,0.00018486,2]
[326626766,1715160636717,-811.712,0.00018486,2]
[326626767,1715160636729,-611.08,0.00018486,2]
[326626768,1715160636740,-151.127,0.00018486,2]
[326626769,1715160636751,-2468.497,0.00018486,2]
[326626770,1715160636760,-1477.722,0.00018486,2]
[326626771,1715160636770,-151.408,0.00018486,2]
[326626772,1715160636780,-1139.0,0.00018486,2]
[326626773,1715160636790,-1645.0,0.00018486,2]
[326626774,1715160636799,-444.0,0.00018486,2]
[326626775,1715160636808,-215.0,0.00018486,2]
[326626776,1715160636818,-3154.0,0.00018486,2]
[326626777,1715160636827,-973.202,0.00018486,2]
[326626778,1715160636836,-1398.674,0.00018486,2]
[326626779,1715160636845,-2301.6,0.00018486,2]
[326626780,1715160636855,-288.0,0.00018486,2]
[326626781,1715160636864,-2295.0,0.00018486,2]
[326626782,1715160636874,-37744.0,0.00018486,2]
[326626783,1715160636883,-5907.0,0.00018486,2]
[326626784,1715160636892,-5745.0,0.00018486,2]
[326626785,1715160636902,-5000.0,0.00019,2]
[326626786,1715160636912,-391.82,0.00019178,2]
[326626787,1715160636921,-156.35,0.00019178,2]
[326626788,1715160636931,-154.67,0.00019178,2]
[326626789,1715160636940,-174.98,0.00019353,2]
[326626790,1715160636949,-200.0,0.00019353,2]
[326626791,1715160636958,-152.2,0.00019934,2]
[326626792,1715160636967,-800.0,0.0002,3]
[326626793,1715160636976,-23890.0,0.00020144,2]
[326626794,1715160636985,-4574.59,0.0002016,2]
[326626795,1715160636994,-1500.0,0.0002016,2]
[326626796,1715160637004,-171.301,0.00020856,2]
[326626797,1715160637013,-314.98,0.00020972,2]
[326626798,1715160637022,-152.2,0.00021031,2]
[326626799,1715160637037,-150.53,0.00021047,2]
[326626800,1715160637050,-150.0,0.00021058,2]
[326626801,1715160637060,-374.98,0.00021173,2]
[326626802,1715160637070,-780.58,0.00021196,2]
[326626803,1715160637080,-250.0,0.00021329,2]
[326626804,1715160637090,-1195.58670155,0.00021386,2]
[326626805,1715160637100,-8016.90502666,0.00021386,2]
[326626806,1715160637110,-183.072,0.00021486,2]
[326626807,1715160637121,-611.0,0.00021486,2]
[326626808,1715160637131,-2431.0,0.00021486,2]
[326626809,1715160637140,-1078.19,0.00021486,2]
[326626810,1715160637152,-444.0,0.00021486,2]
[326626811,1715160637161,-302.954,0.00021486,2]
[326626812,1715160637170,-210.0,0.00021486,2]
[326626813,1715160637179,-2121.014,0.00021486,2]
[326626814,1715160637188,-2301.0,0.00021486,2]
[326626815,1715160637198,-288.0,0.00021486,2]
[326626816,1715160637207,-2291.0,0.00021486,2]
[326626817,1715160637221,-5901.0,0.00021486,2]
[326626818,1715160637231,-5233.718,0.00021486,2]
[326626819,1715160637241,-2751.0,0.00021534,2]
[326626820,1715160637251,-747.4,0.00021589,15]
[326626821,1715160637262,-151.85369651,0.00021678,2]
[326626822,1715160637271,-1749.7901495,0.00021749,2]
[326626823,1715160637280,-522.26,0.00021798,2]
[326626824,1715160637292,-250.0,0.00021918,2]
[326626825,1715160637301,-171.301,0.00021951,2]
[326626826,1715160637314,-546.4241888,0.00022,2]
[326626827,1715160637325,-12636.75901314,0.00022,2]
[326626828,1715160637334,-850.0,0.00022,3]
[326626829,1715160637344,-152.2,0.00022127,2]
[326626830,1715160637353,-4574.59,0.000229,2]
[326626831,1715160637363,-171.301,0.00023161,2]
[326626832,1715160637372,-1195.58670151,0.00023221,2]
[326626833,1715160637381,-8016.90502666,0.00023221,2]
[326626834,1715160637391,-152.2,0.00023224,2]
[326626835,1715160637402,-165.94,0.00023794,2]
[326626836,1715160637411,-1000.0,0.00023796,2]
[326626837,1715160637420,-500.0,0.00023879,2]
[326626838,1715160637430,-2058.42733662,0.00024,2]
[326626839,1715160637440,-432.43230672,0.00024,2]
[326626840,1715160637449,-900.0,0.00024,3]
[326626841,1715160637459,-161.82220474,0.00024,2]
[326626842,1715160637468,-250.0,0.00024085,2]
[326626843,1715160637479,-180.0,0.0002423,2]
[326626844,1715160637488,-522.26,0.00024522,2]
[326626845,1715160637497,-167.0,0.00024924,2]
[326626846,1715160637507,-9141.6134401,0.0002499,2]
[326626847,1715160637517,-155.0,0.00025,2]
[326626848,1715160637527,-2219.11364841,0.00025,2]
[326626849,1715160637536,-471.76227117,0.00025,2]
[326626850,1715160637545,-1002.12,0.00025,2]
[326626851,1715160637554,-1195.58670151,0.00025056,2]
[326626852,1715160637564,-8016.90502666,0.00025056,2]
[326626853,1715160637574,-747.4,0.00025325,15]
[326626854,1715160637583,-391.82,0.00025379,2]
[326626855,1715160637592,-705.0,0.000254,2]
[326626856,1715160637601,-1000.0,0.000254,2]
[326626857,1715160637610,-4574.59,0.0002564,2]
[326626858,1715160637619,-167.0,0.00025747,2]
[326626859,1715160637628,-310.9,0.00025792,2]
[326626860,1715160637639,-152.50767435,0.00026009,2]
[326626861,1715160637650,-338.07,0.00026135,120]
[326626862,1715160637659,-1002.12,0.000264,2]
[326626863,1715160637668,-167.0,0.0002657,2]
[326626864,1715160637677,-1000.0,0.0002677,2]
[326626866,1715160637687,-1195.58670151,0.00026891,2]
[326626868,1715160637696,-8016.90502666,0.00026891,2]
[326626869,1715160637705,-1003.79990434,0.00026965,2]
[326626870,1715160637715,-1741.42627628,0.00027,2]
[326626871,1715160637724,-522.26,0.00027247,2]
[326626872,1715160637733,-167.0,0.00027392,2]
[326626873,1715160637742,-150.0,0.00027397,2]
[326626874,1715160637751,-161.16,0.00027397,10]
[326626875,1715160637761,-805.8,0.00027397,10]
[326626876,1715160637908,-1002.12,0.000278,2]
[326626877,1715160637919,-171.22,0.00027847,2]
[326626878,1715160637928,-171.22,0.00027882,2]
[326626879,1715160637938,-171.22,0.00027917,2]
[326626880,1715160637948,-171.22,0.00027951,2]
[326626881,1715160637958,-171.22,0.00027986,2]
[326626882,1715160637967,-500.0,0.00027997,2]
[326626883,1715160637977,-150.0,0.00028118,2]
[326626884,1715160637987,-233.15212342,0.00028199,7]
[326626885,1715160637996,-507.45963909,0.00028199,7]
[326626886,1715160638005,-155.66172099,0.00028199,7]
[326626887,1715160638015,-503.54781248,0.00028199,7]
[326626888,1715160638024,-300.0,0.00028199,2]
[326626889,1715160638034,-9973.17,0.000282,2]
[326626890,1715160638043,-167.0,0.00028215,2]
[326626891,1715160638052,-500.0,0.000285,10]
[326626892,1715160638062,-1000.0,0.000286,10]
[326626893,1715160638071,-7226.885,0.00028645,2]
[326626894,1715160638080,-1898.15616774,0.00028645,2]
[326626895,1715160638090,-1600.0,0.000287,10]
[326626896,1715160638099,-1195.58670151,0.00028726,2]
[326626897,1715160638108,-8016.90502666,0.00028726,2]
[326626898,1715160638118,-3076.46832238,0.00028745,7]
[326626899,1715160638127,-1225.44903621,0.00028745,2]
[326626900,1715160638136,-19563.17365467,0.00028746,2]
[326626901,1715160638146,-160.56191224,0.000288,2]
[326626902,1715160638155,-2100.0,0.000288,10]
[326626903,1715160638165,-150.0,0.00028839,2]
[326626904,1715160638174,-310.21241604,0.00028899,2]
[326626905,1715160638189,-162.46993018,0.000289,2]
[326626906,1715160638204,-6003.11513854,0.000289,2]
[326626907,1715160638218,-2700.0,0.000289,10]
[326626908,1715160638228,-210.68479937,0.000289,2]
[326626909,1715160638237,-1560.64174384,0.00028929,2]
[326626910,1715160638247,-3499.67939162,0.00028941,2]
[326626911,1715160638258,-150.5,0.0002897,15]
[326626912,1715160638267,-150.5,0.0002898,15]
[326626913,1715160638277,-150.5,0.0002899,15]
[326626914,1715160638286,-151.73,0.0002899,2]
[326626915,1715160638296,-772.38276861,0.00028998,2]
[326626916,1715160638306,-282.03665938,0.00028999,2]
[326626917,1715160638316,-337.30716425,0.00028999,7]
[326626918,1715160638327,-500.0,0.00028999,7]
[326626919,1715160638336,-500.0,0.00028999,7]
[326626920,1715160638346,-500.0,0.00028999,7]
[326626921,1715160638356,-500.0,0.00028999,7]
[326626922,1715160638365,-500.0,0.00028999,7]
[326626923,1715160638375,-591.11,0.00028999,7]
[326626924,1715160638384,-500.0,0.00028999,7]
[326626925,1715160638393,-562.05,0.00028999,7]
[326626926,1715160638403,-155.66615459,0.00028999,7]
[326626927,1715160638412,-500.0,0.00028999,7]
[326626928,1715160638427,-500.0,0.00028999,7]
[326626929,1715160638441,-500.0,0.00028999,7]
[326626930,1715160638452,-549.33126578,0.00028999,7]
[326626931,1715160638462,-611.76,0.00028999,7]
[326626932,1715160638472,-320.82674101,0.00028999,7]
[326626933,1715160638482,-500.0,0.00028999,7]
[326626934,1715160638492,-500.0,0.00028999,7]
[326626935,1715160638502,-175.79979885,0.00028999,7]
[326626936,1715160638512,-507.66100248,0.00028999,7]
[326626937,1715160638521,-500.0,0.00028999,7]
[326626938,1715160638531,-500.0,0.00028999,7]
[326626939,1715160638541,-500.0,0.00028999,7]
[326626940,1715160638551,-500.0,0.00028999,7]
[326626941,1715160638561,-500.0,0.00028999,7]
[326626942,1715160638570,-530.38,0.00028999,7]
[326626943,1715160638580,-500.0,0.00028999,7]
[326626944,1715160638589,-500.0,0.00028999,7]
[326626945,1715160638599,-644.0,0.00028999,7]
[326626946,1715160638609,-500.0,0.00028999,7]
[326626947,1715160638618,-500.0,0.00028999,7]
[326626948,1715160638628,-500.0,0.00028999,7]
[326626949,1715160638638,-500.0,0.00028999,7]
[326626950,1715160638648,-500.0,0.00028999,7]
[326626951,1715160638658,-500.0,0.00028999,7]
[326626952,1715160638668,-500.0,0.00028999,7]
[326626953,1715160638677,-500.0,0.00028999,7]
[326626954,1715160638687,-500.0,0.00028999,7]
[326626955,1715160638696,-500.0,0.00028999,7]
[326626956,1715160638706,-988.0,0.00028999,3]
[326626957,1715160638715,-500.0,0.00028999,7]
[326626958,1715160638724,-500.0,0.00028999,7]
[326626959,1715160638734,-500.0,0.00028999,7]
[326626960,1715160638743,-5916.41,0.00028999,7]
[326626961,1715160638753,-500.0,0.00028999,7]
[326626962,1715160638763,-500.0,0.00028999,7]
[326626963,1715160638776,-500.0,0.00028999,7]
[326626964,1715160638786,-500.0,0.00028999,7]
[326626965,1715160638796,-500.0,0.00028999,7]
[326626966,1715160638805,-500.0,0.00028999,7]
[326626967,1715160638815,-519.73,0.00028999,7]
[326626968,1715160638825,-500.0,0.00028999,7]
[326626969,1715160638835,-500.0,0.00028999,7]
[326626970,1715160638845,-500.0,0.00028999,7]
[326626971,1715160638854,-500.0,0.00028999,7]
[326626972,1715160638864,-500.0,0.00028999,7]
[326626973,1715160638874,-500.0,0.00028999,7]
[326626974,1715160638883,-500.0,0.00028999,7]
[326626975,1715160638893,-3666.17,0.00028999,7]
[326626976,1715160638906,-500.0,0.00028999,7]
[326626977,1715160638915,-500.0,0.00028999,7]
[326626978,1715160638923,-508.06286393,0.00028999,7]
[326626979,1715160638932,-500.0,0.00028999,7]
[326626980,1715160638941,-500.0,0.00028999,7]
[326626981,1715160638951,-4264.74,0.00028999,7]
[326626982,1715160638960,-502.83716215,0.00028999,7]
[326626983,1715160638970,-500.0,0.00028999,7]
[326626984,1715160638980,-1030.81,0.00028999,7]
[326626985,1715160638989,-209.98616442,0.00028999,7]
[326626986,1715160638999,-500.0,0.00028999,7]
[326626987,1715160639008,-500.0,0.00028999,7]
[326626988,1715160639018,-500.0,0.00028999,7]
[326626989,1715160639027,-500.0,0.00028999,7]
[326626990,1715160639036,-1340.29,0.00028999,7]
[326626991,1715160639046,-500.0,0.00028999,7]
[326626992,1715160639056,-500.0,0.00028999,7]
[326626993,1715160639066,-500.0,0.00028999,7]
[326626994,1715160639075,-6768.75,0.00028999,7]
[326626995,1715160639084,-500.0,0.00028999,7]
[326626996,1715160639094,-500.0,0.00028999,7]
[326626997,1715160639104,-500.0,0.00028999,7]
[326626998,1715160639113,-500.0,0.00028999,7]
[326626999,1715160639122,-500.0,0.00028999,7]
[326627000,1715160639131,-500.0,0.00028999,7]
[326627001,1715160639141,-500.0,0.00028999,7]
[326627002,1715160639151,-500.0,0.00028999,7]
[326627003,1715160639161,-508.15363179,0.00028999,7]
[326627004,1715160639170,-500.0,0.00028999,7]
[326627005,1715160639181,-567.86,0.00028999,7]
[326627006,1715160639190,-500.0,0.00028999,7]
[326627007,1715160639200,-500.0,0.00028999,7]
[326627008,1715160639213,-500.0,0.00028999,7]
[326627009,1715160639223,-826.44,0.00028999,7]
[326627010,1715160639233,-922.0,0.00029,5]
[326627011,1715160639242,-439200.95544503,0.00029,2]
[326627012,1715160639259,-530.0,0.00029,2]
[326627013,1715160639270,-1078.35103245,0.00029,2]
[326627014,1715160639282,-2795.25188364,0.00029,2]
[326627015,1715160639295,-53369.47516183,0.00029,2]
[326627016,1715160639308,-2649.6225874,0.00029,2]
[326627019,1715160641494,-220.81045868,0.00017914,2]
[326627022,1715160641504,-478.60847577,0.00018485,2]
[326627027,1715160641515,-165.17255466,0.0002899,2]
[326627029,1715160641525,-2461.1,0.00028999,7]
[326627031,1715160641535,-1051.48,0.00028999,7]
[326627033,1715160641544,-376.34388965,0.00029,2]
[326627035,1715160641553,-35020.18237874,0.00029,7]
[326627037,1715160641565,-5950.14032621,0.00029,7]
[326627040,1715160641576,-12237.09312621,0.00029,7]
[326627041,1715160641587,-37712.29673683,0.00029,7]
[326627042,1715160641598,-47676.97026289,0.00029,7]
[326627048,1715160644267,-326.025,0.00026841,2]
[326627143,1715160647424,-471.975,0.00026841,2]
[326627145,1715160647434,-798.0,0.00027118,2]
[326627147,1715160647443,-798.0,0.00027394,2]
[326627149,1715160647453,-798.0,0.00027671,2]
[326627151,1715160647463,-798.0,0.00027948,2]
[326627152,1715160647473,-500.0,0.00028999,7]
[326627153,1715160647482,-500.0,0.00028999,7]
[326627154,1715160647491,-3602.3324387,0.00029,7]
[326627155,1715160647503,-583.84889202,0.00029,7]
[326627156,1715160647514,-60254.16275777,0.00029,7]
[326627157,1715160647526,-7237.83311816,0.00029,7]
[326627158,1715160647537,-500.32600203,0.00029,7]
[326627159,1715160647549,-2489.74274507,0.00029,7]
[326627193,1715160653413,-8359.13953205,0.00019451,2]
[326627194,1715160653423,-543.0,0.00019584,2]
[326627195,1715160653433,-622.83,0.000281,15]
[326627196,1715160653443,-798.0,0.00028224,2]
[326627197,1715160653452,-798.0,0.00028501,2]
[326627198,1715160653462,-1741.42627628,0.00028998,2]
[326627199,1715160653471,-286735.07121537,0.00029,7]
[326627200,1715160653480,-564.56776386,0.00029,2]
[326627201,1715160653490,-54849.26775175,0.00029,2]
[326627202,1715160653502,-2413.75,0.00029,2]
[326627203,1715160653516,-7124.4,0.00029,2]
[326627204,1715160653528,-629.38092231,0.00029,2]
[326627205,1715160653539,-12740.01931555,0.00029,2]
[326627206,1715160653550,-730.94446069,0.00029,2]
[326627207,1715160653695,-59151.14944729,0.00029,2]
[326627208,1715160653707,-404.0560625,0.00029,2]
[326627209,1715160653719,-672.35000001,0.00029,2]
[326627210,1715160653729,-9819.8505,0.00029,2]
[326627223,1715161832576,-155.0,0.00011853,2]
[326627225,1715161832586,-265.94745897,0.00011854,2]
[326627228,1715161832596,-155.0,0.00011855,2]
[326627229,1715161832608,-628.52245036,0.00011855,2]
[326627232,1715161832621,-667.70420706,0.00011855,2]
[326627233,1715161832631,-577.82588361,0.00011862,2]
[326627235,1715161832642,-327.04599991,0.00011862,2]
[326627238,1715161832654,-474.21379098,0.00011862,2]
[326627240,1715161832663,-150.0,0.00011862,2]
[326627241,1715161832672,-4324.92171151,0.0001189,2]
[326627242,1715161832681,-176.67344846,0.000119,2]
[326627244,1715161834916,-2365.71554263,0.00011854,2]
[326627246,1715161834928,-5993.42398942,0.00011854,2]
[326627248,1715161834939,-293.5824071,0.000119,2]
[326627250,1715161834952,-448.14574444,0.000119,2]
[326627253,1715161834961,-870.94625556,0.00012,2]
[326627463,1715161840657,-497.0,0.00012,2]
[326627468,1715161840669,-293.42592338,0.00012,2]
[326627471,1715161840681,-7229.34790663,0.00012,2]
[326627474,1715161840694,-3433.671851,0.00012,2]
[326627476,1715161844058,-743.0862703,0.00012,2]
[326627478,1715161844067,-101.9337297,0.00012348,2]
[326627479,1715161844080,-86.87466663,0.00012348,2]
[326627480,1715161844089,-172.54375222,0.000129,2]
[326627481,1715161844099,-3738.44398115,0.000129,2]
[326627484,1715161844110,-2642.7517788,0.000129,2]
[326627486,1715161844119,-1125.36975258,0.000129,2]
[326627488,1715161844129,-1660.88664672,0.000129,2]
[326627490,1715161844138,-310.21241604,0.000129,2]
[326627491,1715161844147,-277.48458608,0.000129,2]
[326627492,1715161844156,-193.8779513,0.000129,2]
[326627493,1715161844165,-499.99,0.0001299,2]
[326627494,1715161844175,-165.17255466,0.0001299,2]
[326627495,1715161844184,-151.7,0.0001299,2]
[326627496,1715161844194,-151.7,0.0001299,2]
[326627497,1715161844203,-151.7,0.0001299,2]
[326627498,1715161844212,-151.7,0.0001299,2]
[326627499,1715161844222,-151.7,0.0001299,2]
[326627500,1715161844231,-151.7,0.0001299,2]
[326627501,1715161844241,-151.7,0.0001299,2]
[326627502,1715161844250,-151.7,0.0001299,2]
[326627503,1715161844259,-151.7,0.0001299,2]
[326627504,1715161844268,-151.7,0.0001299,2]
[326627505,1715161844278,-151.7,0.0001299,2]
[326627506,1715161844287,-151.7,0.0001299,2]
[326627507,1715161844296,-1712778.13205402,0.00013,2]
[326627508,1715161844308,-378.88143139,0.00013,2]
[326627510,1715161849164,-498.40910865,0.00012999,2]
[326627520,1715161850703,-638.82288535,0.00012999,2]
[326627525,1715161850714,-494.72933879,0.00012999,2]
[326627528,1715161850726,-170.08170731,0.00012999,2]
[326627533,1715161850736,-176.21861474,0.00012999,2]
[326627536,1715161850748,-29.88982601,0.00012999,2]
[326627538,1715161850758,-18423.61105285,0.00013,2]
[326627541,1715161850770,-16989.91276986,0.00013,2]
[326627543,1715161850784,-507.30573655,0.00013,2]
[326627544,1715161850795,-858.72191135,0.00013,2]
[326627545,1715161850806,-558.41888184,0.00013,2]
[326627546,1715161850817,-1351.41252935,0.00013,2]
[326627547,1715161850828,-2654.17372556,0.00013,2]
[326627548,1715161850840,-494.17574675,0.00013,2]
[326627549,1715161850851,-9901.98761922,0.00013,2]
[326627550,1715161850862,-1124.81695055,0.00013,2]
[326627551,1715161851909,-860596.88998053,0.00013,2]
[326627555,1715161851922,-1835.89565874,0.00013,2]
[326627567,1715162105024,-155.0,0.00010956,2]
[326627568,1715162105659,-3873.9378683,0.00010956,2]
[326627569,1715162106090,-3873.9378683,0.00010956,2]
[326627577,1715163034573,-302.02512739,0.00010665,2]
[326627581,1715163034583,-481.06761368,0.00010666,2]
[326627584,1715163034595,-838.296,0.00010666,2]
[326627586,1715163034607,-287.37338502,0.00010666,2]
[326627588,1715163034619,-254.9652263,0.00010666,2]
[326627589,1715163034630,-4.1347737,0.00010719,2]
[326627592,1715163034642,-150.8652263,0.00010719,2]
[326627594,1715163034660,-318.0,0.00010834,2]
[326627596,1715163034672,-150.0,0.00010952,2]
[326627597,1715163034682,-3300.89888192,0.00010952,2]
[326627612,1715163040156,-155.0,0.00010664,2]
[326627616,1715163040166,-6562.24717082,0.00010952,2]
[326627619,1715163040176,-7704.69046311,0.00010953,2]
[326627621,1715163040186,-179.9588821,0.00010956,2]
[326627622,1715163040196,-547.82959903,0.00010956,2]
[326627623,1715163040208,-298.56741175,0.00010956,2]
[326627624,1715163040217,-450.09777938,0.00010958,2]
[326627625,1715163040227,-179.64,0.00010959,2]
[326627626,1715163040237,-150.0,0.00011731,2]
[326627627,1715163040247,-500.0,0.00011731,2]
[326627628,1715163040256,-200.0,0.00011731,2]
[326627629,1715163040266,-1933.7010262,0.00012,2]
[326627630,1715163040276,-961.2092523,0.00012348,2]
[326627631,1715163040285,-3500.94133622,0.00012701,2]
[326627632,1715163040295,-499.99,0.00012823,2]
[326627633,1715163040305,-1561.86172371,0.00012866,2]
[326627634,1715163040315,-584.15909771,0.00012898,2]
[326627635,1715163040324,-533.84746218,0.00012899,2]
[326627636,1715163040333,-1000.0,0.000129,2]
[326627637,1715163040343,-610.4073,0.000129,2]
[326627638,1715163040352,-3118.85149547,0.000129,2]
[326627639,1715163040364,-6453.29880336,0.000129,2]
[326627640,1715163040376,-6197.30167694,0.000129,2]
[326627641,1715163040387,-8165.08243232,0.000129,2]
[326627642,1715163040399,-4719.61949191,0.000129,2]
[326627643,1715163040408,-172.54375221,0.000129,2]
[326627644,1715163040418,-310.21241604,0.000129,2]
[326627645,1715163040428,-199.76929601,0.000129,2]
[326627646,1715163040437,-702.70099124,0.000129,2]
[326627647,1715163040447,-2464.95670461,0.000129,2]